fUSD/lending_fUSD_20260116
["ID","MTS","AMOUNT","RATE_DAILY","PERIOD"]
[402125749,1768531858924,-264.94242999,0.0003589,10]
[402125750,1768531858935,-500.0,0.0003589,10]
[402125751,1768531858945,-500.0,0.0003589,10]
[402125752,1768531858955,-500.0,0.0003589,10]
[402125753,1768531858964,-452.89077906,0.0003589,10]
[402125754,1768531858974,-500.0,0.0003589,10]
[402125755,1768531858986,-797.28,0.0003589,10]
[402125756,1768531858995,-500.0,0.0003589,10]
[402125757,1768531859004,-500.0,0.0003589,10]
[402125758,1768531859017,-500.0,0.0003589,10]
[402125759,1768531859026,-513.28076865,0.0003589,10]
[402125760,1768531859035,-500.0,0.0003589,10]
[402125761,1768531859044,-500.0,0.0003589,10]
[402125762,1768531859054,-663.6,0.0003589,10]
[402125763,1768531859063,-500.0,0.0003589,10]
[402125764,1768531859074,-406.94063079,0.0003589,10]
[402125765,1768531859083,-500.0,0.0003589,10]
[402125766,1768531859093,-521.03,0.0003589,10]
[402125767,1768531859102,-500.0,0.0003589,10]
[402125768,1768531859111,-500.0,0.0003589,10]
[402125769,1768531859121,-903.43,0.0003589,10]
[402125770,1768531859130,-500.0,0.0003589,10]
[402125771,1768531859139,-500.0,0.0003589,10]
[402125772,1768531859149,-754.81,0.0003589,10]
[402125773,1768531859158,-567.06,0.0003589,10]
[402125774,1768531859167,-508.91961953,0.0003589,10]
[402125775,1768531859176,-500.0,0.0003589,10]
[402125776,1768531859185,-500.0,0.0003589,10]
[402125777,1768531859194,-500.0,0.0003589,10]
[402125778,1768531859206,-271.64530523,0.0003589,10]
[402125779,1768531859215,-507.26,0.0003589,10]
[402125780,1768531859225,-1074.27,0.0003589,10]
[402125781,1768531859235,-944.72,0.0003589,10]
[402125782,1768531859245,-500.0,0.0003589,10]
[402125783,1768531859255,-573.27,0.0003589,10]
[402125784,1768531859264,-523.64,0.0003589,10]
[402125785,1768531859285,-500.0,0.0003589,10]
[402125786,1768531859294,-500.0,0.0003589,10]
[402125787,1768531859304,-500.0,0.0003589,10]
[402125788,1768531859313,-500.0,0.0003589,10]
[402125789,1768531859323,-500.0,0.0003589,10]
[402125790,1768531859332,-500.0,0.0003589,10]
[402125791,1768531859341,-500.0,0.0003589,10]
[402125792,1768531859351,-844.67,0.0003589,10]
[402125793,1768531859360,-500.0,0.0003589,10]
[402125794,1768531859369,-500.0,0.0003589,10]
[402125795,1768531859378,-500.0,0.0003589,10]
[402125796,1768531859386,-710.69,0.0003589,10]
[402125797,1768531859395,-500.0,0.0003589,10]
[402125798,1768531859405,-500.0,0.0003589,10]
[402125799,1768531859414,-734.22,0.0003589,10]
[402125800,1768531859424,-506.03927214,0.0003589,10]
[402125801,1768531859434,-500.0,0.0003589,10]
[402125802,1768531859443,-500.0,0.0003589,10]
[402125803,1768531859453,-500.0,0.0003589,10]
[402125804,1768531859463,-500.0,0.0003589,10]
[402125805,1768531859472,-500.0,0.0003589,10]
[402125806,1768531859482,-500.0,0.0003589,10]
[402125807,1768531859491,-500.0,0.0003589,10]
[402125808,1768531859500,-375.64307142,0.0003589,10]
[402125809,1768531859509,-500.0,0.0003589,10]
[402125810,1768531859519,-593.33,0.0003589,10]
[402125811,1768531859528,-785.73,0.0003589,10]
[402125812,1768531859538,-500.0,0.0003589,120]
[402125813,1768531859547,-500.0,0.0003589,10]
[402125814,1768531859558,-500.0,0.0003589,10]
[402125815,1768531859567,-500.0,0.0003589,10]
[402125816,1768531859578,-564.51,0.0003589,10]
[402125817,1768531859587,-679.02,0.0003589,10]
[402125818,1768531859597,-500.0,0.0003589,10]
[402125819,1768531859606,-500.0,0.0003589,10]
[402125820,1768531859615,-500.0,0.0003589,10]
[402125821,1768531859626,-500.0,0.0003589,10]
[402125822,1768531859635,-500.0,0.0003589,10]
[402125823,1768531859644,-500.0,0.0003589,10]
[402125824,1768531859654,-535.79,0.0003589,10]
[402125825,1768531859663,-500.0,0.0003589,10]
[402125826,1768531859672,-310.68799344,0.0003589,10]
[402125827,1768531859682,-816.15,0.0003589,10]
[402125828,1768531859692,-807.45,0.0003589,10]
[402125829,1768531859701,-800.34,0.0003589,10]
[402125830,1768531859711,-990.39,0.0003589,10]
[402125831,1768531859720,-1337.07,0.0003589,10]
[402125832,1768531859730,-548.97,0.0003589,10]
[402125833,1768531859739,-500.0,0.0003589,10]
[402125834,1768531859749,-500.0,0.0003589,10]
[402125835,1768531859758,-500.0,0.0003589,10]
[402125836,1768531859769,-554.58,0.0003589,10]
[402125837,1768531859785,-500.0,0.0003589,10]
[402125838,1768531859794,-500.0,0.0003589,10]
[402125839,1768531859803,-500.0,0.0003589,10]
[402125840,1768531859815,-585.05,0.0003589,10]
[402125841,1768531859831,-590.67,0.0003589,10]
[402125842,1768531859842,-500.0,0.0003589,10]
[402125843,1768531859852,-500.0,0.0003589,10]
[402125844,1768531859862,-500.0,0.0003589,10]
[402125845,1768531859872,-995.1,0.0003589,10]
[402125846,1768531859882,-756.08,0.0003589,10]
[402125847,1768531859891,-654.54,0.0003589,10]
[402125848,1768531859901,-558.47,0.0003589,10]
[402125849,1768531859910,-772.33,0.0003589,10]
[402125850,1768531859919,-257.26597899,0.0003589,10]
[402125851,1768531859928,-500.0,0.0003589,10]
[402125852,1768531859939,-1111.81,0.0003589,10]
[402125853,1768531859948,-1024.71,0.0003589,10]
[402125854,1768531859958,-500.0,0.0003589,10]
[402125855,1768531859968,-500.0,0.0003589,10]
[402125856,1768531859978,-500.0,0.0003589,10]
[402125857,1768531859988,-831.24,0.0003589,10]
[402125858,1768531859998,-171.39609564,0.0003589,10]
[402125859,1768531860009,-553.99,0.0003589,10]
[402125860,1768531860019,-500.0,0.0003589,10]
[402125861,1768531860028,-1053.84,0.0003589,2]
[402125862,1768531860038,-782.64,0.0003589,10]
[402125863,1768531860048,-1082.46,0.0003589,10]
[402125864,1768531860057,-500.0,0.0003589,10]
[402125865,1768531860067,-1398.41,0.0003589,10]
[402125866,1768531860077,-1395.51,0.0003589,10]
[402125867,1768531860087,-500.0,0.0003589,10]
[402125868,1768531860097,-1372.35,0.0003589,10]
[402125869,1768531860107,-500.0,0.0003589,10]
[402125870,1768531860116,-500.0,0.0003589,10]
[402125871,1768531860126,-500.0,0.0003589,10]
[402125872,1768531860136,-500.0,0.0003589,10]
[402125873,1768531860146,-500.0,0.0003589,10]
[402125874,1768531860156,-507.05821772,0.0003589,10]
[402125875,1768531860166,-500.0,0.0003589,10]
[402125876,1768531860176,-500.0,0.0003589,10]
[402125877,1768531860185,-500.0,0.0003589,10]
[402125878,1768531860195,-1146.99,0.0003589,10]
[402125879,1768531860205,-500.0,0.0003589,10]
[402125880,1768531860215,-516.58,0.0003589,10]
[402125881,1768531860225,-1563.91,0.0003589,10]
[402125882,1768531860234,-500.0,0.0003589,10]
[402125883,1768531860244,-1514.61,0.0003589,10]
[402125884,1768531860253,-500.0,0.0003589,10]
[402125885,1768531860262,-500.0,0.0003589,10]
[402125886,1768531860272,-500.0,0.0003589,10]
[402125887,1768531860281,-500.0,0.0003589,10]
[402125888,1768531860291,-500.0,0.0003589,10]
[402125889,1768531860300,-500.0,0.0003589,10]
[402125890,1768531860310,-1050.37,0.0003589,10]
[402125891,1768531860320,-500.0,0.0003589,10]
[402125892,1768531860329,-541.48,0.0003589,10]
[402125893,1768531860338,-500.0,0.0003589,10]
[402125894,1768531860348,-500.0,0.0003589,10]
[402125895,1768531860358,-500.0,0.0003589,10]
[402125896,1768531860367,-702.81,0.0003589,10]
[402125897,1768531860377,-979.86,0.0003589,10]
[402125898,1768531860386,-573.52,0.0003589,10]
[402125899,1768531860397,-814.57,0.0003589,10]
[402125900,1768531860406,-500.0,0.0003589,10]
[402125901,1768531860416,-1092.39,0.0003589,10]
[402125902,1768531860426,-603.27878535,0.0003589,10]
[402125903,1768531860436,-616.88,0.0003589,10]
[402125904,1768531860446,-552.63930445,0.0003589,10]
[402125905,1768531860455,-500.0,0.0003589,10]
[402125906,1768531860465,-502.09787395,0.0003589,10]
[402125907,1768531860474,-500.0,0.0003589,10]
[402125908,1768531860484,-500.0,0.0003589,10]
[402125909,1768531860499,-643.54,0.0003589,10]
[402125910,1768531860509,-500.0,0.0003589,10]
[402125911,1768531860518,-500.0,0.0003589,10]
[402125912,1768531860528,-500.0,0.0003589,10]
[402125913,1768531860537,-500.0,0.0003589,10]
[402125914,1768531860546,-600.35,0.0003589,10]
[402125915,1768531860556,-613.33,0.0003589,10]
[402125916,1768531860565,-500.0,0.0003589,10]
[402125917,1768531860575,-741.74,0.0003589,10]
[402125918,1768531860584,-500.0,0.0003589,10]
[402125919,1768531860593,-675.6,0.0003589,10]
[402125920,1768531860603,-641.29,0.0003589,10]
[402125921,1768531860613,-500.0,0.0003589,10]
[402125922,1768531860622,-658.76,0.0003589,10]
[402125923,1768531860632,-1111.0,0.0003589,10]
[402125924,1768531860642,-1033.86,0.0003589,10]
[402125925,1768531860652,-500.0,0.0003589,10]
[402125926,1768531860661,-500.0,0.0003589,10]
[402125927,1768531860671,-500.0,0.0003589,10]
[402125928,1768531860680,-638.35,0.0003589,10]
[402125929,1768531860690,-500.0,0.0003589,10]
[402125930,1768531860699,-510.14457932,0.0003589,10]
[402125931,1768531860709,-826.43,0.0003589,10]
[402125932,1768531860718,-526.46085293,0.0003589,10]
[402125933,1768531860728,-1182.98,0.0003589,10]
[402125934,1768531860738,-1133.3,0.0003589,10]
[402125935,1768531860747,-528.67,0.0003589,10]
[402125936,1768531860758,-500.0,0.0003589,10]
[402125937,1768531860768,-500.0,0.0003589,10]
[402125938,1768531860778,-500.0,0.0003589,10]
[402125939,1768531860789,-517.74,0.0003589,10]
[402125940,1768531860798,-500.0,0.0003589,10]
[402125941,1768531860809,-806.73,0.0003589,10]
[402125942,1768531860818,-771.84,0.0003589,10]
[402125943,1768531860828,-500.0,0.0003589,10]
[402125944,1768531860837,-500.0,0.0003589,10]
[402125945,1768531860847,-505.81338198,0.0003589,10]
[402125946,1768531860856,-2242.23,0.0003589,10]
[402125947,1768531860866,-500.0,0.0003589,10]
[402125948,1768531860875,-500.0,0.0003589,10]
[402125949,1768531860885,-834.24,0.0003589,10]
[402125950,1768531860894,-500.0,0.0003589,10]
[402125951,1768531860904,-500.0,0.0003589,10]
[402125952,1768531860913,-500.0,0.0003589,10]
[402125953,1768531860925,-500.0,0.0003589,10]
[402125954,1768531860936,-500.0,0.0003589,10]
[402125955,1768531860946,-561.51540706,0.0003589,10]
[402125956,1768531860956,-500.0,0.0003589,10]
[402125957,1768531860966,-541.84247973,0.0003589,10]
[402125958,1768531860978,-500.0,0.0003589,10]
[402125959,1768531860988,-1252.63,0.0003589,10]
[402125960,1768531861001,-669.34,0.0003589,10]
[402125961,1768531861013,-591.02,0.0003589,10]
[402125962,1768531861023,-601.75,0.0003589,10]
[402125963,1768531861033,-513.39,0.0003589,10]
[402125964,1768531861044,-509.14826463,0.0003589,10]
[402125965,1768531861054,-682.85,0.0003589,10]
[402125966,1768531861064,-563.95,0.0003589,10]
[402125967,1768531861074,-701.66,0.0003589,10]
[402125968,1768531861084,-500.0,0.0003589,10]
[402125969,1768531861094,-500.0,0.0003589,10]
[402125970,1768531861105,-500.0,0.0003589,10]
[402125971,1768531861115,-500.0,0.0003589,10]
[402125972,1768531861125,-500.0,0.0003589,10]
[402125973,1768531861135,-500.0,0.0003589,10]
[402125974,1768531861144,-504.24941436,0.0003589,10]
[402125975,1768531861155,-506.49267699,0.0003589,10]
[402125976,1768531861165,-1725.72,0.0003589,10]
[402125977,1768531861175,-544.89,0.0003589,10]
[402125978,1768531861185,-500.0,0.0003589,10]
[402125979,1768531861195,-582.08,0.0003589,10]
[402125980,1768531861204,-500.0,0.0003589,10]
[402125981,1768531861214,-500.0,0.0003589,10]
[402125982,1768531861225,-500.0,0.0003589,10]
[402125983,1768531861235,-516.47,0.0003589,10]
[402125984,1768531861245,-1044.25,0.0003589,10]
[402125985,1768531861261,-552.98,0.0003589,10]
[402125986,1768531861280,-594.78,0.0003589,10]
[402125987,1768531861302,-509.96187181,0.0003589,10]
[402125988,1768531861313,-535.2753636,0.0003589,10]
[402125989,1768531861324,-500.0,0.0003589,10]
[402125990,1768531861338,-500.0,0.0003589,10]
[402125991,1768531861350,-500.0,0.0003589,10]
[402125992,1768531861360,-500.0,0.0003589,10]
[402125993,1768531861372,-654.07,0.0003589,10]
[402125994,1768531861384,-626.18,0.0003589,10]
[402125995,1768531861394,-500.0,0.0003589,10]
[402125996,1768531861404,-500.0,0.0003589,10]
[402125997,1768531861415,-529.63715981,0.0003589,10]
[402125998,1768531861425,-500.0,0.0003589,10]
[402125999,1768531861435,-500.0,0.0003589,10]
[402126000,1768531861444,-1061.23,0.0003589,10]
[402126001,1768531861454,-500.0,0.0003589,10]
[402126002,1768531861464,-500.0,0.0003589,10]
[402126003,1768531861474,-500.0,0.0003589,10]
[402126004,1768531861484,-671.14,0.0003589,10]
[402126005,1768531861494,-500.0,0.0003589,10]
[402126006,1768531861504,-690.16,0.0003589,10]
[402126007,1768531861515,-500.0,0.0003589,10]
[402126008,1768531861524,-517.42,0.0003589,10]
[402126009,1768531861536,-634.0,0.0003589,10]
[402126010,1768531861546,-500.0,0.0003589,10]
[402126011,1768531861558,-500.0,0.0003589,10]
[402126012,1768531861569,-801.13,0.0003589,10]
[402126013,1768531861579,-772.62,0.0003589,10]
[402126014,1768531861589,-500.0,0.0003589,10]
[402126015,1768531861600,-500.0,0.0003589,10]
[402126016,1768531861610,-500.0,0.0003589,10]
[402126017,1768531861619,-500.0,0.0003589,10]
[402126018,1768531861630,-500.0,0.0003589,10]
[402126019,1768531861640,-500.0,0.0003589,10]
[402126020,1768531861650,-500.0,0.0003589,10]
[402126021,1768531861660,-1689.93,0.0003589,10]
[402126022,1768531861670,-1247.89,0.0003589,10]
[402126023,1768531861680,-505.30867579,0.0003589,10]
[402126024,1768531861690,-500.0,0.0003589,10]
[402126025,1768531861700,-500.0,0.0003589,10]
[402126026,1768531861710,-675.48,0.0003589,10]
[402126027,1768531861720,-508.19086157,0.0003589,10]
[402126028,1768531861729,-1278.48,0.0003589,10]
[402126029,1768531861739,-712.11,0.0003589,10]
[402126030,1768531861748,-500.0,0.0003589,10]
[402126031,1768531861758,-894.65,0.0003589,10]
[402126032,1768531861769,-414.88987842,0.0003589,10]
[402126033,1768531861779,-730.61,0.0003589,10]
[402126034,1768531861788,-579.06,0.0003589,10]
[402126035,1768531861798,-1034.79,0.0003589,10]
[402126036,1768531861808,-500.0,0.0003589,10]
[402126037,1768531861818,-500.0,0.0003589,10]
[402126038,1768531861828,-708.09,0.0003589,10]
[402126039,1768531861838,-500.0,0.0003589,10]
[402126040,1768531861847,-500.0,0.0003589,10]
[402126041,1768531861857,-419.93497677,0.0003589,10]
[402126042,1768531861867,-604.95,0.0003589,10]
[402126043,1768531861876,-500.0,0.0003589,10]
[402126044,1768531861886,-500.0,0.0003589,10]
[402126045,1768531861896,-535.54,0.0003589,10]
[402126046,1768531861907,-233.55245146,0.0003589,10]
[402126047,1768531861917,-500.0,0.0003589,10]
[402126048,1768531861927,-557.51,0.0003589,10]
[402126049,1768531861939,-507.40552107,0.0003589,10]
[402126050,1768531861949,-500.0,0.0003589,10]
[402126051,1768531861960,-500.0,0.0003589,10]
[402126052,1768531861971,-500.0,0.0003589,10]
[402126053,1768531861981,-199.0890559,0.0003589,10]
[402126054,1768531863619,-353.1863629,0.00017327,2]
[402126055,1768531863651,-661.17204148,0.00017327,2]
[402126056,1768531864638,-151.0,0.00016857,2]
[402126057,1768531864648,-10314.23653821,0.00017327,2]
[402126058,1768531864658,-1532.38,0.00035616,10]
[402126059,1768531864667,-500.0,0.00035616,10]
[402126060,1768531864676,-1146.6009441,0.0003589,10]
[402126061,1768531864685,-507.78235582,0.0003589,10]
[402126062,1768531864694,-500.0,0.0003589,10]
[402126063,1768531864703,-508.32719942,0.0003589,10]
[402126064,1768531864712,-669.7,0.0003589,10]
[402126065,1768531864722,-500.0,0.0003589,10]
[402126066,1768531864731,-500.0,0.0003589,10]
[402126067,1768531864740,-743.24,0.0003589,10]
[402126068,1768531864749,-500.0,0.0003589,10]
[402126069,1768531864758,-500.0,0.0003589,10]
[402126070,1768531864767,-553.88,0.0003589,10]
[402126071,1768531864777,-500.0,0.0003589,10]
[402126072,1768531864786,-500.0,0.0003589,10]
[402126073,1768531864796,-658.51,0.0003589,10]
[402126074,1768531864805,-935.53,0.0003589,10]
[402126075,1768531864815,-500.0,0.0003589,10]
[402126076,1768531864824,-604.49459981,0.0003589,10]
[402126077,1768531864833,-500.0,0.0003589,10]
[402126078,1768531864842,-783.81,0.0003589,10]
[402126079,1768531864852,-500.0,0.0003589,10]
[402126080,1768531864862,-500.0,0.0003589,10]
[402126081,1768531864871,-1307.68,0.0003589,10]
[402126082,1768531864880,-500.0,0.0003589,10]
[402126083,1768531864889,-510.07905672,0.0003589,10]
[402126084,1768531864898,-500.0,0.0003589,10]
[402126085,1768531864908,-901.71,0.0003589,10]
[402126086,1768531864917,-505.47881786,0.0003589,10]
[402126087,1768531864926,-503.65137212,0.0003589,10]
[402126088,1768531864937,-975.01,0.0003589,10]
[402126089,1768531864947,-500.0,0.0003589,10]
[402126090,1768531864956,-500.0,0.0003589,10]
[402126091,1768531864965,-661.84,0.0003589,10]
[402126092,1768531864974,-400.0,0.0003589,10]
[402126093,1768531864985,-500.0,0.0003589,10]
[402126094,1768531864994,-1757.87,0.0003589,10]
[402126095,1768531865007,-500.0,0.0003589,10]
[402126096,1768531865016,-509.60172918,0.0003589,10]
[402126097,1768531865026,-500.0,0.0003589,10]
[402126098,1768531865035,-553.09,0.0003589,10]
[402126099,1768531865044,-500.0,0.0003589,10]
[402126100,1768531865053,-501.69991683,0.0003589,2]
[402126101,1768531865063,-2720.27,0.0003589,10]
[402126102,1768531865071,-886.14,0.0003589,10]
[402126103,1768531865081,-643.91,0.0003589,10]
[402126104,1768531865090,-653.74,0.0003589,10]
[402126105,1768531865100,-507.04816196,0.0003589,10]
[402126106,1768531865109,-500.0,0.0003589,10]
[402126107,1768531865119,-500.0,0.0003589,10]
[402126108,1768531865128,-505.03369429,0.0003589,10]
[402126109,1768531865138,-658.75,0.0003589,10]
[402126110,1768531865147,-500.0,0.0003589,10]
[402126111,1768531865157,-500.0,0.0003589,10]
[402126112,1768531865166,-500.0,0.0003589,10]
[402126113,1768531865177,-1321.33,0.0003589,10]
[402126114,1768531865187,-525.11619607,0.0003589,10]
[402126115,1768531865198,-1372.25,0.0003589,10]
[402126116,1768531865209,-500.0,0.0003589,10]
[402126117,1768531865220,-795.26,0.0003589,10]
[402126118,1768531865229,-500.0,0.0003589,10]
[402126119,1768531865239,-500.0,0.0003589,10]
[402126120,1768531865248,-574.2775291,0.0003589,10]
[402126121,1768531865258,-500.0,0.0003589,10]
[402126122,1768531865267,-371.15578546,0.0003589,10]
[402126123,1768531865277,-1990.28,0.0003589,10]
[402126124,1768531865294,-500.0,0.0003589,10]
[402126125,1768531865304,-500.0,0.0003589,10]
[402126126,1768531865315,-500.0,0.0003589,10]
[402126127,1768531865325,-500.0,0.0003589,10]
[402126128,1768531865334,-3561.85,0.0003589,10]
[402126129,1768531865343,-500.0,0.0003589,10]
[402126130,1768531865352,-1969.9,0.0003589,10]
[402126131,1768531865362,-500.0,0.0003589,10]
[402126132,1768531865372,-500.0,0.0003589,10]
[402126133,1768531865382,-806.54124333,0.0003589,10]
[402126134,1768531865489,-387.07875667,0.0003589,10]
[402126135,1768531865500,-193.47305002,0.0003589,10]
[402126136,1768531914875,-416.54049403,0.00015332,2]
[402126137,1768531917604,-83.45950597,0.00015332,2]
[402126138,1768531917627,-212.61091557,0.00015332,2]
[402126139,1768532008241,204.83942282,0.00015234,2]
[402126140,1768532051947,1902.13791725,0.00015234,2]
[402126141,1768532085229,1236.57733254,0.00015234,2]
[402126142,1768532139542,698.70407616,0.00015234,2]
[402126143,1768532241768,158.01,0.00014315,2]
[402126144,1768532246818,-1200.0,0.00015331,2]
[402126145,1768532246845,-300.0,0.00015331,2]
[402126146,1768532246872,-250.0,0.00015331,2]
[402126147,1768532246899,-392.9037788,0.00015332,2]
[402126148,1768532246925,-242.11473024,0.00015332,2]
[402126149,1768532246952,-500.0,0.00015332,2]
[402126150,1768532246982,-500.0,0.00015332,2]
[402126151,1768532247011,-500.0,0.00015332,2]
[402126152,1768532247039,-500.0,0.00015332,2]
[402126153,1768532247070,-327.26066354,0.00015332,2]
[402126154,1768532247099,-150.0,0.00015332,2]
[402126155,1768532247127,-125.45165484,0.00015332,2]
[402126156,1768532252523,-24.54834516,0.00015332,2]
[402126157,1768532252554,-150.0,0.00015332,2]
[402126158,1768532252583,-258.86566282,0.00015332,2]
[402126159,1768532252610,-151.0,0.00015332,2]
[402126160,1768532252637,-300.0,0.00015332,2]
[402126161,1768532252668,-250.0,0.00015332,2]
[402126162,1768532253148,-3555.46158043,0.00015333,2]
[402126163,1768532259141,-10000.01,0.00015333,2]
[402126177,1768532282064,2265.71898859,0.00015234,2]
[402126213,1768532325605,-500.0,0.00015332,2]
[402126214,1768532325636,-186.59828109,0.00015332,2]
[402126215,1768532325664,-500.0,0.00015332,2]
[402126216,1768532325694,-500.0,0.00015332,2]
[402126217,1768532325723,-500.0,0.00015332,2]
[402126218,1768532325753,-300.0,0.00015332,2]
[402126219,1768532325963,-2761.09444923,0.00015333,2]
[402126220,1768532326026,-10000.01,0.00015333,2]
[402126221,1768532326045,-10000.01,0.00015333,2]
[402126222,1768532331780,-10000.01,0.00015333,2]
[402126223,1768532331922,-10000.01,0.00015333,2]
[402126224,1768532332049,-10000.01,0.00015333,2]
[402126227,1768532380190,3148.8565,0.00015233,2]
[402126228,1768532386365,6851.1535,0.00015233,2]
[402126229,1768532386386,10000.01,0.00015233,2]
[402126230,1768532386407,10000.01,0.00015233,2]
[402126231,1768532386429,10000.01,0.00015233,2]
[402126232,1768532386450,10000.01,0.00015233,2]
[402126233,1768532386471,10000.01,0.00015233,2]
[402126234,1768532386492,10000.01,0.00015233,2]
[402126235,1768532386514,10000.01,0.00015233,2]
[402126236,1768532386536,6583.2608,0.00015233,2]
[402126237,1768532407188,4035.0,0.0003,120]
[402126238,1768532410971,579.5761,0.00015232,2]
[402126239,1768532419764,611.36606664,0.00015234,2]
[402126240,1768532474513,1639.76793435,0.00015234,2]
[402126241,1768532479039,202.55851202,0.00015234,2]
[402126242,1768532492673,1000.0,0.00015234,2]
[402126243,1768532493164,169.22312379,0.00015026,2]
[402126244,1768532493200,1424.728,0.00015026,2]
[402126248,1768532518633,3205.52891639,0.00030137,120]
[402126249,1768532538622,1060.51,0.00030137,120]
[402126250,1768532690191,-166.31446291,0.00015331,2]
[402126251,1768532692059,-133.68553709,0.00015331,2]
[402126252,1768532692087,-57.69446291,0.00015332,2]
[402126253,1768532792282,2423.43638488,0.00015233,2]
[402126254,1768532800113,-270.0097088,0.00015331,2]
[402126255,1768532819431,216.9007905,0.00015234,2]
[402126256,1768532854207,534.94530831,0.00015233,2]
[402126257,1768532860809,1475.79114087,0.00015233,2]
[402126258,1768532944941,7772.37276032,0.00015232,2]
[402126259,1768532944969,10000.01,0.00015232,2]
[402126260,1768532944996,10000.01,0.00015232,2]
[402126261,1768532945023,10000.01,0.00015232,2]
[402126262,1768532945049,10000.01,0.00015232,2]
[402126263,1768532945076,10000.01,0.00015232,2]
[402126264,1768532945103,10000.01,0.00015232,2]
[402126265,1768532945129,10000.01,0.00015232,2]
[402126266,1768532945154,10000.01,0.00015232,2]
[402126267,1768532945180,10000.01,0.00015232,2]
[402126269,1768532964802,-163.39236788,0.00015232,2]
[402126270,1768532966875,-5366.10307832,0.00015232,2]
[402126271,1768532968091,-1493.1649014,0.00015232,2]
[402126272,1768532968791,-10000.01,0.00015232,2]
[402126273,1768532968831,-10000.01,0.00015232,2]
[402126274,1768532968974,-10000.01,0.00015232,2]
[402126275,1768532969100,-10000.01,0.00015232,2]
[402126276,1768532969233,-10000.01,0.00015232,2]
[402126277,1768532969347,-10000.01,0.00015232,2]
[402126278,1768532969475,-10000.01,0.00015232,2]
[402126279,1768532970368,-10000.01,0.00015232,2]
[402126280,1768532970391,-10000.01,0.00015232,2]
[402126281,1768532970522,-10000.01,0.00015232,2]
[402126282,1768532971391,-216.56969934,0.00015232,2]
[402126283,1768532975103,-10000.01,0.00015232,2]
[402126284,1768532975218,-10000.01,0.00015232,2]
[402126285,1768532975336,-10000.01,0.00015232,2]
[402126286,1768532975471,-10000.01,0.00015232,2]
[402126287,1768532975583,-10000.01,0.00015232,2]
[402126288,1768532975710,-10000.01,0.00015232,2]
[402126289,1768532975813,-10000.01,0.00015232,2]
[402126290,1768532975919,-10000.01,0.00015232,2]
[402126291,1768532976012,-10000.01,0.00015232,2]
[402126292,1768532976131,-10000.01,0.00015232,2]
[402126293,1768532981181,-749.9,0.00015187,2]
[402126294,1768532981215,-8500.21,0.00015232,2]
[402126295,1768532981344,-10000.01,0.00015232,2]
[402126296,1768532981444,-10000.01,0.00015232,2]
[402126297,1768532981580,-10000.01,0.00015232,2]
[402126298,1768532981672,-10000.01,0.00015232,2]
[402126299,1768532987268,-10000.01,0.00015232,2]
[402126300,1768532987369,-10000.01,0.00015232,2]
[402126301,1768532987507,-1185.99041968,0.00015132,2]
[402126302,1768532987539,-614.49099274,0.00015232,2]